bitfinex/quotes_BTCUSD_20240629
["timestamp","ask_amount","ask_price","bid_price","bid_amount"]
[1719686814298,0.573167,61064.0,61063.0,0.18826298]
[1719686817236,0.573167,61064.0,61063.0,0.38826298]
[1719686818017,0.573167,61064.0,61063.0,0.18826298]
[1719686820109,0.573167,61064.0,61063.0,0.38826298]
[1719686820248,0.573167,61064.0,61063.0,0.16826298]
[1719686820451,0.573167,61064.0,61063.0,0.69766298]
[1719686824180,0.573167,61064.0,61063.0,0.49766298]
[1719686824430,0.573167,61064.0,61063.0,0.69766298]
[1719686826353,0.3439,61064.0,61063.0,0.69766298]
[1719686830523,0.114633,61064.0,61063.0,0.69766298]
[1719686831098,0.114633,61064.0,61063.0,0.27766298]
[1719686838057,0.114633,61064.0,61063.0,0.69766298]
[1719686844097,0.115472,61065.0,61063.0,0.69766298]
[1719686844247,0.115472,61065.0,61064.0,0.22]
[1719686844450,0.115472,61065.0,61064.0,0.38233898]
[1719686845446,0.115472,61065.0,61064.0,0.38433898]
[1719686845658,0.115472,61065.0,61064.0,0.38633898]
[1719686848264,0.344735,61065.0,61064.0,0.16633898]
[1719686848644,0.344735,61065.0,61064.0,0.18273404]
[1719686849431,0.344735,61065.0,61064.0,0.16633898]
[1719686855373,0.344735,61065.0,61064.0,0.38633898]
[1719686860543,0.00084,61065.0,61064.0,0.38633898]
[1719686860770,0.00084,61065.0,61064.0,0.35383898]
[1719686860976,0.00084,61065.0,61064.0,1.50223898]
[1719686861381,0.00084,61065.0,61064.0,1.73150598]
[1719686862187,0.00084,61065.0,61064.0,1.72950598]
[1719686862527,0.00084,61065.0,61064.0,1.73150598]
[1719686862896,0.00084,61065.0,61064.0,1.72750598]
[1719686863304,0.00084,61065.0,61064.0,1.71750598]
[1719686863574,0.00084,61065.0,61064.0,1.72950598]
[1719686863693,0.00184,61065.0,61064.0,1.73850598]
[1719686863895,0.00184,61065.0,61064.0,1.50923898]
[1719686864236,0.00284,61065.0,61064.0,1.51423898]
[1719686866013,0.00284,61065.0,61064.0,1.50423898]
[1719686866798,0.00284,61065.0,61064.0,1.42973898]
[1719686870386,0.00284,61065.0,61064.0,1.20047198]
[1719686874042,0.00284,61065.0,61064.0,1.08583898]
[1719686876516,0.00284,61065.0,61064.0,0.88583898]
[1719686877016,0.00284,61065.0,61064.0,1.08583898]
[1719686877217,0.00284,61065.0,61064.0,0.88583898]
[1719686877621,0.229245,61070.0,61064.0,0.88583898]
[1719686877749,0.229245,61070.0,61067.0,0.2]
[1719686877956,0.343872,61069.0,61068.0,0.16233898]
[1719686880116,0.343872,61069.0,61068.0,0.16833898]
[1719686880340,0.344872,61069.0,61068.0,0.16833898]
[1719686880766,0.344872,61069.0,61068.0,0.17433898]
[1719686880767,0.345872,61069.0,61068.0,0.17433898]
[1719686888201,0.345872,61069.0,61068.0,0.37433898]
[1719686888808,0.345872,61069.0,61068.0,0.17433898]
[1719686889004,0.345872,61069.0,61068.0,0.59433898]
[1719686889215,0.345872,61069.0,61068.0,0.37433898]
[1719686889635,0.345872,61069.0,61068.0,0.17433898]
[1719686890090,0.345872,61069.0,61068.0,0.37433898]
[1719686896265,0.345872,61069.0,61068.0,0.17433898]
[1719686896266,0.420372,61069.0,61068.0,0.17433898]
[1719686904404,0.345872,61069.0,61068.0,0.17433898]
[1719686904853,0.345872,61069.0,61068.0,0.39433898]
[1719686907385,0.345872,61069.0,61068.0,0.37302808]
[1719686908064,0.345872,61069.0,61068.0,0.39302808]
[1719686909757,0.345872,61069.0,61068.0,0.48172808]
[1719686910090,0.345872,61069.0,61068.0,0.50172808]
[1719686910283,0.345872,61069.0,61068.0,0.48172808]
[1719686910501,0.345872,61069.0,61068.0,0.50172808]
[1719686910717,0.345872,61069.0,61068.0,0.48172808]
[1719686910928,0.345872,61069.0,61068.0,0.48265208]
[1719686911402,0.346712,61069.0,61068.0,0.48265208]
[1719686911819,0.421212,61069.0,61068.0,0.48265208]
[1719686917392,0.421212,61069.0,61068.0,0.37395208]
[1719686920649,0.421212,61069.0,61068.0,0.012924]
[1719686922035,0.419212,61069.0,61068.0,0.000924]
[1719686922517,0.422212,61069.0,61068.0,0.000924]
[1719686923013,0.425212,61069.0,61068.0,0.000924]
[1719686923511,0.422212,61069.0,61068.0,0.000924]
[1719686923979,0.425212,61069.0,61068.0,0.000924]
[1719686932034,0.350712,61069.0,61068.0,0.000924]
[1719686932253,0.425212,61069.0,61068.0,0.000924]
[1719686961312,0.17050444,61069.0,61068.0,0.000924]
[1719686963486,0.17050444,61069.0,61068.0,0.103224]
[1719686963916,0.09600444,61069.0,61068.0,0.187424]
[1719686964123,0.17050444,61069.0,61068.0,0.187424]
[1719686971490,0.09600444,61069.0,61068.0,0.187424]
[1719686971699,0.17050444,61069.0,61068.0,0.34976298]
[1719686972543,0.16750444,61069.0,61068.0,0.34976298]
[1719686972746,0.16450444,61069.0,61068.0,0.34976298]
[1719686972958,0.16750444,61069.0,61068.0,0.34976298]
[1719686973166,0.16450444,61069.0,61068.0,0.34976298]
[1719686973585,0.16550444,61069.0,61068.0,0.34976298]
[1719686974014,0.16650444,61069.0,61068.0,0.34976298]
[1719686974657,0.16550444,61069.0,61068.0,0.34976298]
[1719686986744,0.16550444,61069.0,61068.0,0.16326298]
[1719686993284,0.16550444,61069.0,61068.0,0.000924]
[1719687017859,0.09100444,61069.0,61068.0,0.000924]
[1719687018304,0.16550444,61069.0,61068.0,0.102924]
[1719687018513,0.17628818,61087.0,61068.0,0.102924]
[1719687018734,0.02837323,61091.0,61068.0,0.11931906]
[1719687018735,0.0745,61069.0,61068.0,0.11931906]
[1719687018938,0.0745,61069.0,61068.0,0.102924]
[1719687020405,0.0745,61069.0,61068.0,0.103924]
[1719687020613,0.0745,61069.0,61068.0,0.102924]
[1719687021035,0.0755,61069.0,61068.0,0.102924]
[1719687022081,0.001,61069.0,61068.0,0.102924]
[1719687022346,0.001,61069.0,61068.0,0.183824]
[1719687022557,0.0755,61069.0,61068.0,0.20021906]
[1719687024472,0.0755,61069.0,61068.0,0.183824]
[1719687032937,0.11427278,61069.0,61068.0,0.183824]
[1719687033467,0.03977278,61069.0,61068.0,0.183824]
[1719687033693,0.11427278,61069.0,61068.0,0.183824]
[1719687040104,0.0745,61069.0,61068.0,0.34616298]
[1719687046114,0.24473226,61086.0,61068.0,0.34616298]
[1719687046294,0.0745,61069.0,61068.0,0.183824]
[1719687047396,0.0745,61069.0,61068.0,0.34616298]
[1719687060638,0.12316245,61069.0,61068.0,0.34616298]
[1719687069578,0.12316245,61069.0,61068.0,0.000924]
[1719687069991,0.12316245,61069.0,61068.0,0.00087693]
[1719687073968,0.1354787,61069.0,61068.0,0.00087693]
[1719687074169,0.12316245,61069.0,61068.0,0.00087693]
[1719687075229,0.13716245,61069.0,61068.0,0.00087693]
[1719687075701,0.12316245,61069.0,61068.0,0.00087693]
[1719687076108,0.13716245,61069.0,61068.0,0.00087693]
[1719687076330,0.13716245,61069.0,61068.0,0.00187693]
[1719687076611,0.13716245,61069.0,61068.0,0.00087693]
[1719687077014,0.15016245,61069.0,61068.0,0.00187693]
[1719687077389,0.13616245,61069.0,61068.0,0.00187693]
[1719687077573,0.15016245,61069.0,61068.0,0.00187693]
[1719687090487,0.15016245,61069.0,61068.0,0.18757693]
[1719687090694,0.15016245,61069.0,61068.0,0.14373092]
[1719687091494,0.15016245,61069.0,61068.0,0.1049]
[1719687092333,0.15016245,61069.0,61065.0,0.1049]
[1719687092493,0.0745,61066.0,61065.0,0.12129506]
[1719687093705,0.0753188,61066.0,61065.0,0.20299506]
[1719687093910,0.0761376,61066.0,61065.0,0.20299506]
[1719687094849,0.0901376,61066.0,61065.0,0.20399506]
[1719687095050,0.0901376,61066.0,61065.0,0.20299506]
[1719687096433,0.1041376,61066.0,61065.0,0.1876]
[1719687098350,0.00478628,61075.0,61065.0,0.1876]
[1719687098548,0.0745,61066.0,61065.0,0.1876]
[1719687099470,0.0745,61066.0,61065.0,0.1866]
[1719687099902,0.0745,61066.0,61065.0,0.1876]
[1719687100065,0.0745,61066.0,61065.0,0.1866]
[1719687100512,0.0885,61066.0,61065.0,0.1886]
[1719687101271,0.0885,61066.0,61065.0,0.1876]
[1719687101461,0.0985,61066.0,61065.0,0.1886]
[1719687104468,0.0985,61066.0,61065.0,0.189524]
[1719687106205,0.145475,61066.0,61065.0,0.189524]
[1719687110111,0.14542287,61066.0,61065.0,0.189524]
[1719687111945,0.14542287,61066.0,61065.0,0.107824]
[1719687112482,0.14542287,61066.0,61065.0,0.002924]
[1719687136139,0.070975,61066.0,61065.0,0.108524]
[1719687136384,0.145475,61066.0,61065.0,0.192524]
[1719687161897,0.22898867,61084.0,61065.0,0.192524]
[1719687162125,0.0745,61066.0,61065.0,0.20891906]
[1719687162906,0.17628818,61081.0,61067.0,0.08]
[1719687163158,0.0745,61069.0,61068.0,0.1801]
[1719687165336,0.0745,61069.0,61068.0,0.1821]
[1719687168958,0.0745,61069.0,61068.0,0.1811]
[1719687169165,0.0745,61069.0,61068.0,0.1801]
[1719687169345,0.0745,61069.0,61068.0,0.1821]
[1719687170282,0.0745,61069.0,61068.0,0.1811]
[1719687170647,0.0745,61069.0,61068.0,0.1801]
[1719687171064,0.0745,61069.0,61068.0,0.1811]
[1719687171264,0.07534,61069.0,61068.0,0.1811]
[1719687171818,0.07534,61069.0,61068.0,0.1821]
[1719687176954,0.07534,61069.0,61068.0,0.18205627]
[1719687178918,0.11967502,61069.0,61068.0,0.18205627]
[1719687200751,0.11967502,61069.0,61068.0,0.002]
[1719687205395,0.0745,61069.0,61068.0,0.002]
[1719687210477,0.0745,61069.0,61068.0,0.1011]
[1719687210864,0.0745,61069.0,61068.0,0.1812]
[1719687215635,0.11902414,61069.0,61068.0,0.1812]
[1719687218702,0.11902414,61069.0,61068.0,0.18112292]
[1719687235370,0.11902414,61069.0,61068.0,0.18204692]
[1719687235569,0.11986414,61069.0,61068.0,0.18204692]
[1719687237204,0.04536414,61069.0,61068.0,0.18204692]
[1719687237404,0.11986414,61069.0,61068.0,0.18204692]
[1719687248678,0.04618015,61083.0,61068.0,0.18204692]
[1719687248884,0.023,61082.0,61069.0,0.1012]
[1719687249088,0.0745,61070.0,61069.0,0.1012]
[1719687250530,0.0745,61070.0,61069.0,0.1022]
[1719687251469,0.0745,61070.0,61069.0,0.1032]
[1719687251864,0.07531875,61070.0,61069.0,0.1032]
[1719687252148,0.0761375,61070.0,61069.0,0.1032]
[1719687259816,0.0761375,61070.0,61069.0,0.002]
[1719687259817,0.0016375,61070.0,61069.0,0.002]
[1719687260176,0.0016375,61070.0,61069.0,0.187]
[1719687260306,0.0761375,61070.0,61069.0,0.187]
[1719687261593,0.12399703,61070.0,61069.0,0.187]
[1719687263769,0.12399703,61070.0,61069.0,0.18693182]
[1719687269003,0.12399703,61070.0,61069.0,0.18785582]
[1719687269200,0.12483703,61070.0,61069.0,0.18785582]
[1719687292126,0.03881994,61084.0,61069.0,0.18785582]
[1719687292302,0.0745,61071.0,61070.0,0.08130346]
[1719687294104,0.0745,61071.0,61070.0,0.08230346]
[1719687295297,0.0745,61071.0,61070.0,0.08330346]
[1719687301427,0.0745,61071.0,61070.0,0.002]
[1719687306027,0.0745,61071.0,61070.0,0.00192716]
[1719687310045,0.12174815,61071.0,61070.0,0.00192716]
[1719687334228,0.12174815,61071.0,61070.0,0.00285116]
[1719687334435,0.12258815,61071.0,61070.0,0.00285116]
[1719687337996,0.07534,61071.0,61070.0,0.00285116]
[1719687338453,0.07534,61071.0,61070.0,0.09835116]
[1719687340356,0.07534,61071.0,61070.0,0.17335116]
[1719687346126,0.00084,61071.0,61070.0,0.17335116]
[1719687346467,0.07534,61071.0,61070.0,0.17335116]
[1719687347100,0.07534,61071.0,61070.0,0.35896482]
[1719687347101,0.00084,61071.0,61070.0,0.35896482]
[1719687347305,0.00084,61071.0,61070.0,0.64026828]
[1719687348642,0.00084,61071.0,61070.0,0.44026828]
[1719687349109,0.00084,61071.0,61070.0,0.43934112]
[1719687349875,0.00084,61071.0,61070.0,0.43834112]
[1719687350518,0.00084,61071.0,61070.0,0.43934112]
[1719687351692,0.00084,61071.0,61070.0,0.43834112]
[1719687352112,0.00084,61071.0,61070.0,0.63834112]
[1719687354681,0.00084,61071.0,61070.0,0.41834112]
[1719687355090,0.00084,61071.0,61070.0,0.83834112]
[1719687357114,0.00084,61071.0,61070.0,0.84134112]
[1719687357754,0.00084,61071.0,61070.0,0.84434112]
[1719687363178,0.00084,61071.0,61070.0,0.94434112]
[1719687364978,0.00084,61071.0,61070.0,1.46896312]
[1719687365179,0.00084,61086.0,61085.0,0.4009]
[1719687365460,0.00084,61086.0,61085.0,0.8609375]
[1719687365699,0.00084,61086.0,61085.0,0.7409375]
[1719687365857,0.00084,61086.0,61085.0,0.9609375]
[1719687366069,0.00084,61086.0,61085.0,1.1609375]
[1719687366491,0.00084,61086.0,61085.0,1.1619375]
[1719687366928,0.00084,61086.0,61085.0,1.1609375]
[1719687367561,0.00084,61086.0,61085.0,1.07963404]
[1719687368347,0.00247708,61086.0,61085.0,1.07963404]
[1719687368748,0.00247708,61086.0,61085.0,0.85963404]
[1719687369182,0.00247708,61086.0,61085.0,0.87963404]
[1719687369415,0.00247708,61086.0,61085.0,0.87973404]
[1719687370561,0.00247708,61086.0,61085.0,0.86333898]
[1719687370988,0.00247708,61086.0,61085.0,1.06333898]
[1719687371825,0.00247708,61086.0,61085.0,0.64333898]
[1719687372061,0.00247708,61086.0,61085.0,1.06333898]
[1719687373327,0.00247708,61086.0,61085.0,0.64333898]
[1719687373959,0.00247708,61086.0,61085.0,1.06333898]
[1719687374373,0.00247708,61086.0,61085.0,0.75793298]
[1719687374583,0.00247708,61086.0,61085.0,1.60712098]
[1719687374833,0.00247708,61086.0,61085.0,1.62212098]
[1719687375236,0.00247708,61086.0,61085.0,1.61412098]
[1719687375581,0.7843,61103.0,61086.0,1.366762]
[1719687375792,0.04604021,61095.0,61086.0,1.90279604]
[1719687376143,0.7843,61103.0,61086.0,1.90279604]
[1719687376751,0.7843,61103.0,61086.0,1.90579604]
[1719687376951,0.7843,61103.0,61086.0,1.89579604]
[1719687377152,0.7843,61103.0,61086.0,1.90879604]
[1719687378621,0.0745,61104.0,61097.0,0.01]
[1719687378622,0.4708,61102.0,61097.0,0.01]
[1719687378828,0.0745,61104.0,61098.0,0.53941204]
[1719687379173,0.1200635,61104.0,61098.0,0.53941204]
[1719687380661,0.0455635,61104.0,61098.0,0.53941204]
[1719687381053,0.0745,61106.0,61098.0,0.53941204]
[1719687382411,0.04566285,61109.0,61102.0,0.0976]
[1719687382612,0.04566285,61109.0,61105.0,0.2]
[1719687382739,0.00084,61109.0,61106.0,0.16233898]
[1719687384689,0.00084,61109.0,61106.0,0.16333898]
[1719687387315,0.00084,61109.0,61106.0,0.16433898]
[1719687390188,0.00084,61109.0,61107.0,0.0762]
[1719687390392,0.00084,61109.0,61108.0,0.16233898]
[1719687392347,0.00084,61109.0,61108.0,0.16333898]
[1719687393182,0.00084,61109.0,61108.0,0.36333898]
[1719687393381,0.00084,61109.0,61108.0,0.26193898]
[1719687393555,0.00084,61109.0,61108.0,0.26521152]
[1719687393758,0.00084,61109.0,61108.0,0.46521152]
[1719687393984,0.00084,61109.0,61108.0,0.48521152]
[1719687394408,0.00084,61109.0,61108.0,0.46521152]
[1719687394710,0.00084,61109.0,61108.0,0.48521152]
[1719687394883,0.00084,61109.0,61108.0,0.46521152]
[1719687395287,0.00084,61109.0,61108.0,0.16761152]
[1719687395620,0.00084,61109.0,61108.0,0.48213898]
[1719687396624,0.00084,61109.0,61108.0,0.46213898]
[1719687396826,0.00084,61109.0,61108.0,0.48113898]
[1719687397027,0.00084,61109.0,61108.0,0.46113898]
[1719687397235,0.00084,61109.0,61108.0,0.46013898]
[1719687398202,0.00084,61109.0,61108.0,0.48013898]
[1719687398546,0.00084,61109.0,61108.0,0.46013898]
[1719687398755,0.00084,61109.0,61108.0,0.48013898]
[1719687399180,0.00084,61109.0,61108.0,0.46013898]
[1719687399718,0.00084,61109.0,61108.0,0.46023898]
[1719687402901,0.00084,61109.0,61108.0,0.26023898]
[1719687409465,0.00084,61109.0,61108.0,0.46023898]
[1719687413409,0.00084,61109.0,61108.0,0.68023898]
[1719687413680,0.00084,61109.0,61108.0,0.48023898]
[1719687416592,0.00084,61109.0,61108.0,0.68023898]
[1719687416794,0.00084,61109.0,61108.0,0.95553898]
[1719687416994,0.00084,61109.0,61108.0,1.05553898]
[1719687421536,0.00084,61109.0,61108.0,1.06453898]
[1719687422779,0.00084,61109.0,61108.0,0.64453898]
[1719687423440,0.00084,61109.0,61108.0,1.07253898]
[1719687425024,0.00084,61109.0,61108.0,0.65253898]
[1719687425219,0.00084,61109.0,61108.0,1.08253898]
[1719687427473,0.00084,61109.0,61108.0,1.19708998]
[1719687427673,0.00084,61109.0,61108.0,0.76708998]
[1719687427874,0.00084,61109.0,61108.0,1.19708998]
[1719687429163,0.00084,61109.0,61108.0,1.18708998]
[1719687433503,0.00084,61109.0,61108.0,1.17808998]
[1719687433708,0.00084,61109.0,61108.0,1.18708998]
[1719687434339,0.00084,61109.0,61108.0,1.19708998]
[1719687434952,0.00084,61109.0,61108.0,1.07453898]
[1719687435400,0.00084,61109.0,61108.0,1.08253898]
[1719687436387,0.00084,61109.0,61108.0,1.07453898]
[1719687436790,0.00084,61109.0,61108.0,1.08353898]
[1719687442398,0.00084,61109.0,61108.0,1.60909398]
[1719687442586,0.00084,61109.0,61108.0,1.68359398]
[1719687442781,0.00084,61109.0,61108.0,2.11359398]
[1719687443956,0.39326945,61128.0,61111.0,0.192144]
[1719687444185,0.0745,61125.0,61119.0,0.2]
[1719687444382,0.0745,61125.0,61120.0,0.16233898]
[1719687445059,0.00839,61138.0,61120.0,0.16233898]
[1719687445260,0.0745,61126.0,61120.0,0.16233898]
[1719687445982,0.0745,61126.0,61120.0,0.16433898]
[1719687446542,0.0745,61126.0,61120.0,0.16333898]
[1719687446654,0.0745,61126.0,61120.0,0.16433898]
[1719687446853,0.0745,61126.0,61120.0,0.16333898]
[1719687448334,0.0745,61126.0,61120.0,0.16433898]
[1719687448673,0.0745,61125.0,61120.0,0.16433898]
[1719687449457,0.0745,61125.0,61120.0,0.16333898]
[1719687449994,0.0745,61125.0,61120.0,0.16433898]
[1719687450412,0.08056288,61133.0,61120.0,0.16433898]
[1719687450620,0.0745,61126.0,61120.0,0.24564244]
[1719687451639,0.0745,61126.0,61120.0,0.24364244]
[1719687451844,0.0745,61126.0,61120.0,0.24564244]
[1719687452394,0.0745,61126.0,61120.0,0.24464244]
[1719687452599,0.0745,61126.0,61120.0,0.24564244]
[1719687454744,0.0745,61126.0,61120.0,0.16433898]
[1719687454950,0.0745,61123.0,61120.0,0.16433898]
[1719687455378,0.0745,61126.0,61120.0,0.16433898]
[1719687455769,0.08056288,61133.0,61120.0,0.16433898]
[1719687455952,0.0745,61126.0,61120.0,0.16333898]
[1719687456797,0.0745,61126.0,61120.0,0.16233898]
[1719687456978,0.0745,61126.0,61120.0,0.16433898]
[1719687458270,0.0745,61126.0,61120.0,0.16333898]
[1719687458661,0.0745,61126.0,61120.0,0.16433898]
[1719687459406,0.0745,61126.0,61120.0,0.16443898]
[1719687461335,0.08056288,61133.0,61120.0,0.16443898]
[1719687461336,0.0745,61121.0,61120.0,0.16443898]
[1719687461541,0.0745,61121.0,61120.0,0.18083404]
[1719687462150,0.0745,61121.0,61120.0,0.17983404]
[1719687462388,0.0745,61121.0,61120.0,0.17883404]
[1719687466577,0.0745,61121.0,61120.0,0.16243898]
[1719687473880,0.1168777,61121.0,61120.0,0.16243898]
[1719687486452,0.0423777,61121.0,61120.0,0.24374244]
[1719687486668,0.1168777,61121.0,61120.0,0.24374244]
[1719687486865,0.0745,61121.0,61120.0,0.24374244]
[1719687493401,0.04149003,61128.0,61120.0,0.24374244]
[1719687493554,0.0745,61121.0,61120.0,0.24374244]
[1719687494636,0.0745,61121.0,61120.0,0.24474244]
[1719687495238,0.0745,61121.0,61120.0,0.24374244]
[1719687497968,0.0745,61121.0,61120.0,0.24466644]
[1719687504227,0.04149003,61128.0,61120.0,0.24466644]
[1719687504408,0.0745,61123.0,61120.0,0.24466644]
[1719687506546,0.0745,61123.0,61120.0,0.24566644]
[1719687507244,0.0745,61123.0,61120.0,0.24466644]
[1719687507447,0.0745,61123.0,61120.0,0.24666644]
[1719687512289,0.0745,61123.0,61121.0,0.0917]
[1719687512476,0.04149003,61128.0,61122.0,0.16233898]
[1719687512679,0.0745,61123.0,61122.0,0.16233898]
[1719687513766,0.0745,61124.0,61122.0,0.16233898]
[1719687514320,0.0745,61124.0,61123.0,0.166]
[1719687516782,0.04149003,61128.0,61124.0,0.0928]
[1719687517110,0.0745,61125.0,61124.0,0.0928]
[1719687518900,0.0745,61125.0,61124.0,0.0948]
[1719687519280,0.04149003,61128.0,61124.0,0.0948]
[1719687519478,0.0745,61125.0,61124.0,0.0938]
[1719687519905,0.0745,61125.0,61124.0,0.0948]
[1719687520110,0.0745,61125.0,61124.0,0.0938]
[1719687520529,0.0745,61125.0,61124.0,0.0948]
[1719687523416,0.04149003,61128.0,61124.0,0.0948]
[1719687523618,0.0745,61125.0,61124.0,0.0948]
[1719687524301,0.0745,61125.0,61124.0,0.168]
[1719687524517,0.0745,61125.0,61124.0,0.167]
[1719687524728,0.0745,61125.0,61124.0,0.168]
[1719687524993,0.0695,61125.0,61124.0,0.167]
[1719687525204,0.0745,61125.0,61124.0,0.167]
[1719687525385,0.0745,61125.0,61124.0,0.166]
[1719687525729,0.0745,61125.0,61124.0,0.167]
[1719687526422,0.0745,61125.0,61124.0,0.168]
[1719687526836,0.0745,61125.0,61124.0,0.167]
[1719687527061,0.04149003,61128.0,61125.0,0.166]
[1719687527269,0.04149003,61128.0,61127.0,0.0732]
[1719687527475,0.04149003,61128.0,61127.0,0.32833898]
[1719687527907,0.11599003,61128.0,61127.0,0.32833898]
[1719687528114,0.14163279,61142.0,61127.0,0.32833898]
[1719687528320,0.03990025,61133.0,61128.0,0.16233898]
[1719687528525,0.0745,61129.0,61128.0,0.16233898]
[1719687530128,0.0745,61129.0,61128.0,0.16433898]
[1719687533173,0.0745,61129.0,61128.0,0.34673404]
[1719687533990,0.06910409,61142.0,61128.0,0.34673404]
[1719687533991,0.06910409,61142.0,61129.0,0.0888]
[1719687534161,0.0745,61131.0,61130.0,0.0715]
[1719687534784,0.0745,61131.0,61130.0,0.1603]
[1719687536058,0.0745,61131.0,61130.0,0.1613]
[1719687536483,0.0745,61131.0,61130.0,0.1623]
[1719687537024,0.07019559,61143.0,61131.0,0.0888]
[1719687537253,0.25485851,61174.0,61134.0,0.0888]
[1719687537254,0.0745,61140.0,61134.0,0.0888]
[1719687537453,0.0745,61140.0,61136.0,0.0715]
[1719687537676,0.0745,61140.0,61137.0,0.0888]
[1719687537948,0.0745,61138.0,61137.0,0.0888]
[1719687538097,0.03836682,61149.0,61137.0,0.0888]
[1719687538303,0.0745,61138.0,61137.0,0.0888]
[1719687539103,0.0745,61138.0,61137.0,0.0898]
[1719687539738,0.0745,61138.0,61137.0,0.0888]
[1719687539872,0.0745,61138.0,61137.0,0.0898]
[1719687541109,0.0745,61138.0,61137.0,0.002]
[1719687542018,0.0745,61138.0,61137.0,0.001]
[1719687542259,0.0745,61138.0,61137.0,0.002]
[1719687542425,0.0745,61138.0,61137.0,0.001]
[1719687542637,0.00839,61149.0,61137.0,0.002]
[1719687542832,0.0745,61138.0,61137.0,0.001]
[1719687544003,0.0745,61138.0,61137.0,0.002]
[1719687545568,0.00839,61149.0,61137.0,0.002]
[1719687545797,0.0745,61138.0,61137.0,0.002]
[1719687546618,0.0745,61138.0,61137.0,0.001]
[1719687546816,0.0745,61138.0,61136.0,0.01639506]
[1719687547054,0.0745,61138.0,61137.0,0.001]
[1719687547386,0.0745,61138.0,61137.0,0.002]
[1719687548163,0.0745,61138.0,61137.0,0.001]
[1719687548367,0.0745,61138.0,61136.0,0.01639506]
[1719687548575,0.0745,61138.0,61137.0,0.001]
[1719687549162,0.0745,61138.0,61136.0,0.01739506]
[1719687549569,0.0745,61138.0,61136.0,0.01839506]
[1719687549768,0.0745,61138.0,61137.0,0.0001]
[1719687550172,0.0745,61138.0,61137.0,0.0011]
[1719687550370,0.0745,61138.0,61137.0,0.0021]
[1719687551205,0.0745,61138.0,61137.0,0.0011]
[1719687551760,0.00839,61149.0,61137.0,0.0011]
[1719687551959,0.0745,61138.0,61137.0,0.0011]
[1719687552167,0.0745,61138.0,61137.0,0.0021]
[1719687553010,0.0745,61138.0,61137.0,0.0011]
[1719687553416,0.0745,61138.0,61137.0,0.0021]
[1719687553856,0.0745,61138.0,61137.0,0.0011]
[1719687554301,0.0745,61138.0,61137.0,0.0021]
[1719687559492,0.0745,61138.0,61137.0,1e-08]
[1719687559621,0.0745,61138.0,61128.0,0.0869]
[1719687559822,0.0745,61129.0,61128.0,0.10329506]
[1719687560882,0.0745,61129.0,61128.0,0.10429506]
[1719687563751,0.0744,61129.0,61128.0,0.10429506]
[1719687564337,0.0744,61129.0,61128.0,0.0879]
[1719687564507,0.0744,61129.0,61128.0,0.10429506]
[1719687565061,0.0744,61129.0,61128.0,0.0879]
[1719687566020,0.0744,61129.0,61128.0,0.088]
[1719687573609,0.11257182,61129.0,61128.0,0.088]
[1719687575334,0.11257182,61129.0,61128.0,0.1551]
[1719687601283,0.03817182,61129.0,61128.0,0.1551]
[1719687601471,0.0745,61129.0,61128.0,0.1551]
[1719687601681,0.0745,61129.0,61128.0,0.0011]
[1719687601883,0.0745,61129.0,61120.0,0.000924]
[1719687602083,0.0745,61125.0,61124.0,0.01731906]
[1719687603244,0.0744,61125.0,61124.0,0.01731906]
[1719687603443,0.0743,61125.0,61124.0,0.01731906]
[1719687603605,0.0742,61125.0,61124.0,0.01731906]
[1719687603809,0.0742,61125.0,61124.0,0.01831906]
[1719687604007,0.0742,61125.0,61124.0,0.01731906]
[1719687604412,0.0742,61125.0,61124.0,0.01831906]
[1719687604619,0.0882,61125.0,61124.0,0.01931906]
[1719687605964,0.0881,61125.0,61124.0,0.01931906]
[1719687607239,0.014,61125.0,61124.0,0.01931906]
[1719687607446,0.0885,61125.0,61124.0,0.002924]
[1719687610620,0.014,61125.0,61124.0,0.002924]
[1719687610789,0.0885,61125.0,61124.0,0.002924]
[1719687611741,0.0885,61125.0,61124.0,0.003024]
[1719687612300,0.0885,61125.0,61124.0,0.089124]
[1719687612504,0.0885,61125.0,61124.0,0.157024]
[1719687612706,0.12520405,61125.0,61124.0,0.157024]
[1719687614575,0.0745,61125.0,61124.0,0.157024]
[1719687618203,0.24179245,61140.0,61124.0,0.157024]
[1719687618413,0.0745,61125.0,61124.0,0.157024]
[1719687619352,0.0745,61125.0,61124.0,0.156024]
[1719687619524,0.0745,61125.0,61124.0,0.157024]
[1719687619733,0.0745,61125.0,61124.0,0.156024]
[1719687619934,0.0745,61125.0,61124.0,0.155024]
[1719687620088,0.0765,61125.0,61124.0,0.157024]
[1719687620490,0.0765,61125.0,61124.0,0.156024]
[1719687620993,0.0775,61125.0,61124.0,0.156024]
[1719687621396,0.0745,61125.0,61124.0,0.155024]
[1719687621673,0.0745,61125.0,61124.0,0.15361253]
[1719687621873,0.0775,61125.0,61124.0,0.01739506]
[1719687622625,0.0795,61125.0,61124.0,0.01839506]
[1719687622851,0.0775,61125.0,61124.0,0.01739506]
[1719687623255,0.0795,61125.0,61124.0,0.01839506]
[1719687623462,0.005,61125.0,61124.0,0.01839506]
[1719687623684,0.0795,61125.0,61124.0,0.002]
[1719687624295,0.005,61125.0,61124.0,0.002]
[1719687624551,0.0795,61125.0,61124.0,0.002]
[1719687625735,0.005,61125.0,61124.0,0.0021]
[1719687625967,0.005,61125.0,61124.0,0.003024]
[1719687625968,0.0795,61125.0,61124.0,0.003024]
[1719687626162,0.08034,61125.0,61124.0,0.003024]
[1719687626999,0.08034,61125.0,61124.0,0.157324]
[1719687631613,0.11702943,61125.0,61124.0,0.157324]
[1719687631943,0.11702943,61125.0,61124.0,0.152324]
[1719687636252,0.11702943,61125.0,61124.0,0.152424]
[1719687638625,0.04252943,61125.0,61124.0,0.152424]
[1719687638835,0.11702943,61125.0,61124.0,0.152424]
[1719687642702,0.11702943,61125.0,61124.0,0.0001]
[1719687646733,0.13164727,61125.0,61124.0,0.0001]
[1719687646938,0.11702943,61125.0,61120.0,0.000924]
[1719687647152,0.11702943,61125.0,61120.0,0.01731906]
[1719687647383,0.0745,61121.0,61120.0,0.01731906]